[Event "XVI Calvia Amateur Open 2019"]
[Site "Calvia"]
[Date "2019.10.11"]
[Round "7.2"]
[White "Scherer, Helmut"]
[Black "Reichmann, Hendrik"]
[Result "1/2-1/2"]
[ECO "B80"]
[WhiteElo "2278"]
[BlackElo "2341"]
[Annotator "ChessBase"]
[PlyCount "45"]
[EventDate "2019.10.05"]
[EventType "swiss"]
[EventCountry "ESP"]
[SourceTitle "playchess.com"]
[Source "ChessBase"]
[SourceQuality "1"]
[TimeControl "40/5400+30:900+30"]

1. e4 {[%emt 0:00:00]} c5 {[%emt 0:00:00]} 2. Nf3 {[%emt 0:00:00]} e6 {[%emt 0:00:00]} 3. d4 {[%emt 0:01:19]} cxd4 {[%emt 0:00:00]} 4. Nxd4 {[%emt 0:00:08]} Nc6 {[%emt 0:00:07]} 5. Nc3 {[%emt 0:02:38]} Qc7 {[%emt 0:06:26]} 6. g3 {[%emt 0:03:30]} a6 {[%emt 0:04:33]} 7. Bg2 {[%emt 0:04:03]} Nf6 {[%emt 0:01:44]} 8. O-O {[%emt 0:01:19]} d6 {[%emt 0:02:55]} 9. Be3 {[%emt 0:05:28]} Ne5 {[%emt 0:00:51]} 10. a4 {[%emt 0:03:40]} Bd7 {[%emt 0:10:47]} 11. Nb3 {[%emt 0:07:03]} Nc4 {[%emt 0:04:38]} 12. Bc1 {[%emt 0:00:25]} Rc8 {[%emt 0:02:20]} 13. a5 {[%emt 0:03:51]} Be7 {[%emt 0:01:07]} 14. Qe2 {[%emt 0:02:27]} O-O {[%emt 0:03:58]} 15. Rd1 {[%emt 0:02:19]} Rfe8 {[%emt 0:06:35]} 16. f4 {[%emt 0:07:21]} e5 {[%emt 0:07:29]} 17. f5 {[%emt 0:06:23]} h6 {[%emt 0:00:49]} 18. Bf3 {[%emt 0:09:54]} b6 {[%emt 0:08:12]} 19. axb6 {[%emt 0:09:04]} Qxb6+ {[%emt 0:00:04]} 20. Kh1 {[%emt 0:00:26]} a5 {[%emt 0:02:30]} 21. g4 {[%emt 0:07:10]} Qd8 {[%emt 0:10:09]} 22. Rg1 {[%emt 0:10:03]} Nh7 {[%emt 0:00:33]} 23. Nd5 {[%emt 0:02:14]} 1/2-1/2

[Event "XVI Calvia Amateur Open 2019"]
[Site "Calvia"]
[Date "2019.10.11"]
[Round "7.3"]
[White "Bullen, Alex"]
[Black "Massanet Massanet, Sebastian"]
[Result "0-1"]
[ECO "D23"]
[WhiteElo "2139"]
[BlackElo "2252"]
[Annotator "ChessBase"]
[PlyCount "104"]
[EventDate "2019.10.05"]
[EventType "swiss"]
[EventCountry "ESP"]
[SourceTitle "playchess.com"]
[Source "ChessBase"]
[SourceQuality "1"]
[TimeControl "40/5400+30:900+30"]

1. d4 {[%emt 0:01:10]} d5 {[%emt 0:01:07]} 2. Nf3 {[%emt 0:00:00]} Nf6 {[%emt 0:00:23]} 3. c4 {[%emt 0:00:00]} c6 {[%emt 0:00:10]} 4. Qb3 {[%emt 0:00:00]} dxc4 {[%emt 0:02:32]} 5. Qxc4 {[%emt 0:00:00]} Bf5 {[%emt 0:00:44]} 6. g3 {[%emt 0:00:00]} e6 {[%emt 0:02:07]} 7. Bg2 {[%emt 0:00:00]} Qd5 {[%emt 0:01:09]} 8. Nbd2 {[%emt 0:06:04]} Nbd7 {[%emt 0:02:24]} 9. Nh4 {[%emt 0:05:57]} Be4 {[%emt 0:05:11]} 10. Bxe4 {[%emt 0:08:02]} Nxe4 {[%emt 0:02:40]} 11. Qxd5 {[%emt 0:02:49]} exd5 {[%emt 0:00:20]} 12. O-O {[%emt 0:03:18]} g6 {[%emt 0:11:14]} 13. Nhf3 {[%emt 0:04:32]} Bg7 {[%emt 0:01:57]} 14. Nxe4 {[%emt 0:16:43]} dxe4 {[%emt 0:00:11]} 15. Nd2 {[%emt 0:00:07]} Nf6 {[%emt 0:06:27]} 16. Nc4 {[%emt 0:00:51]} Rd8 {[%emt 0:02:57]} 17. Bf4 {[%emt 0:07:38]} Rxd4 {[%emt 0:05:40]} 18. Nd6+ {[%emt 0:00:25]} Ke7 {[%emt 0:00:45]} 19. Nxb7 {[%emt 0:00:43]} Nd5 {[%emt 0:00:55]} 20. Na5 {[%emt 0:02:50]} Rc8 {[%emt 0:01:28]} 21. Rac1 {[%emt 0:05:06]} Nxf4 {[%emt 0:11:52]} 22. gxf4 {[%emt 0:00:03]} c5 {[%emt 0:02:29]} 23. Nc4 {[%emt 0:12:11]} Ke6 {[%emt 0:03:43]} 24. Rc2 {[%emt 0:00:29]} Kf5 {[%emt 0:02:06]} 25. Rfc1 {[%emt 0:01:16]} Rd7 {[%emt 0:01:48]} 26. e3 {[%emt 0:04:00]} Rcd8 {[%emt 0:02:25]} 27. b3 {[%emt 0:01:04]} h6 {[%emt 0:02:17]} 28. Kg2 {[%emt 0:01:13]} g5 {[%emt 0:01:15]} 29. fxg5 {[%emt 0:00:34]} hxg5 {[%emt 0:00:07]} 30. Na5 {[%emt 0:00:30]} Bf8 {[%emt 0:00:41]} 31. Nc6 {[%emt 0:04:25]} Re8 {[%emt 0:01:07]} 32. Rc4 {[%emt 0:00:08]} Re6 {[%emt 0:01:03]} 33. Na5 {[%emt 0:01:41]} Kg6 {[%emt 0:04:58]} 34. R4c2 {[%emt 0:00:57]} f5 {[%emt 0:00:57]} 35. Nc4 {[%emt 0:01:34]} f4 {[%emt 0:01:26]} 36. f3 {[%emt 0:04:26]} exf3+ {[%emt 0:07:12]} 37. Kxf3 {[%emt 0:00:11]} Kf5 {[%emt 0:01:34]} 38. exf4 {[%emt 0:01:47]} Rd3+ {[%emt 0:01:51]} 39. Kf2 {[%emt 0:00:02]} gxf4 {[%emt 0:00:45]} 40. Rd2 {[%emt 0:00:00]} Rh3 {[%emt 0:00:00]} 41. Kg2 {[%emt 0:11:52]} f3+ {[%emt 0:11:55]} 42. Kf2 {[%emt 0:07:39]} Bh6 {[%emt 0:05:18]} 43. Rd5+ {[%emt 0:00:18]} Ke4 {[%emt 0:04:15]} 44. Rcd1 {[%emt 0:00:07]} Rxh2+ {[%emt 0:00:30]} 45. Kg1 {[%emt 0:01:00]} Rg2+ {[%emt 0:01:52]} 46. Kf1 {[%emt 0:00:02]} Reg6 {[%emt 0:03:08]} 47. Nd6+ {[%emt 0:01:58]} Kf4 {[%emt 0:00:34]} 48. Rf5+ {[%emt 0:00:07]} Kg4 {[%emt 0:00:22]} 49. Re5 {[%emt 0:03:03]} Rh2 {[%emt 0:00:56]} 50. Re4+ {[%emt 0:00:33]} Bf4 {[%emt 0:00:37]} 51. Nc4 {[%emt 0:00:23]} Kg3 {[%emt 0:00:25]} 52. Ke1 {[%emt 0:00:26]} Bd2+ {[%emt 0:00:48]} 0-1

[Event "XVI Calvia Amateur Open 2019"]
[Site "Calvia"]
[Date "2019.10.11"]
[Round "7.4"]
[White "De Boer, Bas"]
[Black "Borovnica, Tihomir"]
[Result "0-1"]
[ECO "A57"]
[WhiteElo "2142"]
[BlackElo "2231"]
[Annotator "ChessBase"]
[PlyCount "90"]
[EventDate "2019.10.05"]
[EventType "swiss"]
[EventCountry "ESP"]
[SourceTitle "playchess.com"]
[Source "ChessBase"]
[SourceQuality "1"]
[TimeControl "40/5400+30:900+30"]

1. d4 {[%emt 0:00:00]} Nf6 {[%emt 0:00:16]} 2. c4 {[%emt 0:00:00]} c5 {[%emt 0:00:05]} 3. d5 {[%emt 0:00:00]} b5 {[%emt 0:00:04]} 4. cxb5 {[%emt 0:00:02]} a6 {[%emt 0:00:05]} 5. b6 {[%emt 0:00:12]} d6 {[%emt 0:00:06]} 6. Nc3 {[%emt 0:00:17]} Nbd7 {[%emt 0:00:04]} 7. e4 {[%emt 0:00:41]} g6 {[%emt 0:00:13]} 8. Nf3 {[%emt 0:00:15]} Bg7 {[%emt 0:00:05]} 9. Be2 {[%emt 0:00:50]} O-O {[%emt 0:00:13]} 10. O-O {[%emt 0:00:42]} Rb8 {[%emt 0:00:17]} 11. Rb1 {[%emt 0:02:09]} Rxb6 {[%emt 0:03:49]} 12. Bf4 {[%emt 0:04:43]} a5 {[%emt 0:13:28]} 13. Nd2 {[%emt 0:04:34]} Ba6 {[%emt 0:03:24]} 14. Nc4 {[%emt 0:04:16]} Rb4 {[%emt 0:03:40]} 15. b3 {[%emt 0:03:11]} a4 {[%emt 0:19:59]} 16. Qc2 {[%emt 0:11:38]} axb3 {[%emt 0:01:35]} 17. axb3 {[%emt 0:00:07]} Qc7 {[%emt 0:35:37]} 18. Ra1 {[%emt 0:05:40]} Bxc4 {[%emt 0:00:40]} 19. bxc4 {[%emt 0:00:23]} Qb7 {[%emt 0:00:08]} 20. Nb5 {[%emt 0:04:06]} Ra8 {[%emt 0:00:03]} 21. Bd2 {[%emt 0:03:56]} Rxa1 {[%emt 0:00:14]} 22. Rxa1 {[%emt 0:00:08]} Rxb5 {[%emt 0:02:16]} 23. cxb5 {[%emt 0:00:56]} Nxd5 {[%emt 0:00:05]} 24. Rb1 {[%emt 0:02:05]} N5b6 {[%emt 0:00:14]} 25. Be3 {[%emt 0:03:46]} Qa7 {[%emt 0:00:28]} 26. h4 {[%emt 0:05:33]} h5 {[%emt 0:00:15]} 27. Bg5 {[%emt 0:02:16]} e6 {[%emt 0:00:18]} 28. g4 {[%emt 0:01:59]} hxg4 {[%emt 0:00:17]} 29. Bxg4 {[%emt 0:00:31]} Bd4 {[%emt 0:01:23]} 30. Kg2 {[%emt 0:01:52]} Qa8 {[%emt 0:03:57]} 31. Be2 {[%emt 0:03:49]} Kg7 {[%emt 0:01:07]} 32. f3 {[%emt 0:02:30]} d5 {[%emt 0:00:20]} 33. exd5 {[%emt 0:01:18]} Qxd5 {[%emt 0:01:38]} 34. Bd8 {[%emt 0:05:20]} f5 {[%emt 0:01:38]} 35. h5 {[%emt 0:03:06]} Bf6 {[%emt 0:02:39]} 36. Rd1 {[%emt 0:06:15]} Qe5 {[%emt 0:00:49]} 37. Bxf6+ {[%emt 0:00:11]} Nxf6 {[%emt 0:00:16]} 38. hxg6 {[%emt 0:01:26]} Nfd5 {[%emt 0:00:25]} 39. Qa2 {[%emt 0:03:44]} Ne3+ {[%emt 0:00:20]} 40. Kh1 {[%emt 0:00:00]} Nxd1 {[%emt 0:00:00]} 41. Bxd1 {[%emt 0:03:05]} Kxg6 {[%emt 0:01:29]} 42. Bb3 {[%emt 0:00:22]} Kf6 {[%emt 0:00:24]} 43. Qa7 {[%emt 0:01:19]} Qe1+ {[%emt 0:01:42]} 44. Kh2 {[%emt 0:00:23]} Qe2+ {[%emt 0:00:03]} 45. Kg1 {[%emt 0:02:30]} Qxb5 {[%emt 0:00:06]} 0-1

[Event "XVI Calvia Amateur Open 2019"]
[Site "Calvia"]
[Date "2019.10.11"]
[Round "7.5"]
[White "Tscharotschkin, Michael"]
[Black "Amengual Perello, Jordi"]
[Result "1/2-1/2"]
[ECO "B22"]
[WhiteElo "2198"]
[BlackElo "2087"]
[Annotator "ChessBase"]
[PlyCount "61"]
[EventDate "2019.10.05"]
[EventType "swiss"]
[EventCountry "ESP"]
[SourceTitle "playchess.com"]
[Source "ChessBase"]
[SourceQuality "1"]
[TimeControl "40/5400+30:900+30"]

1. e4 {[%emt 0:00:00]} c5 {[%emt 0:00:24]} 2. c3 {[%emt 0:00:00]} d5 {[%emt 0:00:37]} 3. exd5 {[%emt 0:00:00]} Qxd5 {[%emt 0:00:11]} 4. d4 {[%emt 0:00:07]} Nf6 {[%emt 0:01:00]} 5. Nf3 {[%emt 0:00:21]} Nc6 {[%emt 0:01:14]} 6. Na3 {[%emt 0:04:56]} cxd4 {[%emt 0:07:40]} 7. Nb5 {[%emt 0:01:38]} Qd8 {[%emt 0:00:25]} 8. Nbxd4 {[%emt 0:02:33]} e6 {[%emt 0:04:23]} 9. Bg5 {[%emt 0:07:59]} Nxd4 {[%emt 0:05:15]} 10. Nxd4 {[%emt 0:00:28]} Be7 {[%emt 0:05:34]} 11. Bb5+ {[%emt 0:12:29]} Bd7 {[%emt 0:00:57]} 12. Qb3 {[%emt 0:01:35]} a6 {[%emt 0:04:56]} 13. Bxf6 {[%emt 0:01:59]} Bxf6 {[%emt 0:05:38]} 14. Bxd7+ {[%emt 0:05:32]} Qxd7 {[%emt 0:00:18]} 15. Rd1 {[%emt 0:01:38]} O-O {[%emt 0:02:58]} 16. O-O {[%emt 0:00:54]} Qc7 {[%emt 0:01:52]} 17. Rd3 {[%emt 0:03:27]} Rab8 {[%emt 0:06:58]} 18. Rfd1 {[%emt 0:01:04]} Qc5 {[%emt 0:03:40]} 19. Qc2 {[%emt 0:03:43]} b5 {[%emt 0:04:12]} 20. Nb3 {[%emt 0:01:02]} Qc4 {[%emt 0:02:35]} 21. Nd2 {[%emt 0:06:21]} Qxa2 {[%emt 0:11:06]} 22. Nb3 {[%emt 0:01:41]} Qa4 {[%emt 0:00:57]} 23. Ra1 {[%emt 0:00:19]} Qc4 {[%emt 0:00:28]} 24. Rxa6 {[%emt 0:04:01]} b4 {[%emt 0:03:10]} 25. Ra4 {[%emt 0:10:06]} Qc6 {[%emt 0:01:35]} 26. Ra1 {[%emt 0:01:57]} Rfc8 {[%emt 0:03:12]} 27. Nd4 {[%emt 0:01:08]} Bxd4 {[%emt 0:01:59]} 28. Rxd4 {[%emt 0:00:16]} bxc3 {[%emt 0:00:01]} 29. bxc3 {[%emt 0:00:21]} g6 {[%emt 0:04:15]} 30. g3 {[%emt 0:00:31]} Qxc3 {[%emt 0:00:09]} 31. Rd8+ {[%emt 0:00:04] Qc5} 1/2-1/2

[Event "XVI Calvia Amateur Open 2019"]
[Site "Calvia"]
[Date "2019.10.11"]
[Round "7.6"]
[White "Burdik, Lubomir"]
[Black "Visser, Henk-Jan"]
[Result "0-1"]
[ECO "D04"]
[WhiteElo "2132"]
[BlackElo "2184"]
[Annotator "ChessBase"]
[PlyCount "54"]
[EventDate "2019.10.05"]
[EventType "swiss"]
[EventCountry "ESP"]
[SourceTitle "playchess.com"]
[Source "ChessBase"]
[SourceQuality "1"]
[TimeControl "40/5400+30:900+30"]

1. Nf3 {[%emt 0:00:00]} d5 {[%emt 0:00:00]} 2. d4 {[%emt 0:00:00]} Nf6 {[%emt 0:00:03]} 3. e3 {[%emt 0:01:01]} a6 {[%emt 0:08:09]} 4. b3 {[%emt 0:03:16]} e6 {[%emt 0:06:20]} 5. Bb2 {[%emt 0:00:42]} Bd6 {[%emt 0:00:41]} 6. Nbd2 {[%emt 0:01:50]} b6 {[%emt 0:00:13]} 7. Bd3 {[%emt 0:02:44]} Bb7 {[%emt 0:00:09]} 8. O-O {[%emt 0:00:47]} O-O {[%emt 0:02:28]} 9. Ne5 {[%emt 0:08:37]} Ne4 {[%emt 0:07:58]} 10. f3 {[%emt 0:05:59]} Nxd2 {[%emt 0:05:41]} 11. Qxd2 {[%emt 0:00:06]} f6 {[%emt 0:00:41]} 12. Ng4 {[%emt 0:00:18]} c5 {[%emt 0:06:14]} 13. Rfe1 {[%emt 0:13:15]} Nc6 {[%emt 0:01:14]} 14. c3 {[%emt 0:02:42]} Qc7 {[%emt 0:04:13]} 15. g3 {[%emt 0:05:15]} f5 {[%emt 0:15:13]} 16. Nf2 {[%emt 0:00:27]} Bxg3 {[%emt 0:08:59]} 17. hxg3 {[%emt 0:00:46]} Qxg3+ {[%emt 0:00:25]} 18. Kf1 {[%emt 0:00:21]} e5 {[%emt 0:01:45]} 19. f4 {[%emt 0:08:23]} e4 {[%emt 0:05:38]} 20. Be2 {[%emt 0:09:01]} Rf6 {[%emt 0:03:46]} 21. Rec1 {[%emt 0:07:52]} Rh6 {[%emt 0:04:49]} 22. Ke1 {[%emt 0:03:14]} cxd4 {[%emt 0:02:03]} 23. cxd4 {[%emt 0:00:33]} Rh1+ {[%emt 0:01:19]} 24. Bf1 {[%emt 0:00:10]} a5 {[%emt 0:00:19]} 25. Rxc6 {[%emt 0:05:35]} Bxc6 {[%emt 0:00:12]} 26. Qe2 {[%emt 0:00:19]} Rh2 {[%emt 0:01:10]} 27. Rc1 {[%emt 0:11:53]} Bb5 {[%emt 0:00:33]} 0-1

[Event "XVI Calvia Amateur Open 2019"]
[Site "Calvia"]
[Date "2019.10.12"]
[Round "8.1"]
[White "Reichmann, Hendrik"]
[Black "Gallego Bergada, Antoni"]
[Result "1/2-1/2"]
[ECO "A25"]
[WhiteElo "2341"]
[BlackElo "2177"]
[Annotator "NA"]
[PlyCount "85"]
[EventDate "2019.10.05"]
[EventType "swiss"]
[EventCountry "ESP"]
[SourceTitle "playchess.com"]
[Source "ChessBase"]
[SourceQuality "1"]
[TimeControl "40/5400+30:900+30"]

1. c4 {[%emt 0:00:00]} g6 {[%emt 0:00:00]} 2. g3 {[%emt 0:00:59]} Bg7 {[%emt 0:00:00]} 3. Bg2 {[%emt 0:00:50]} d6 {[%emt 0:00:12]} 4. Nc3 {[%emt 0:01:17]} e5 {[%emt 0:07:16]} 5. d3 {[%emt 0:01:30]} Nc6 {[%emt 0:00:43]} 6. Rb1 {[%emt 0:01:53]} a5 {[%emt 0:01:07]} 7. a3 {[%emt 0:00:47]} Nf6 {[%emt 0:02:34]} 8. e3 {[%emt 0:06:10]} O-O {[%emt 0:02:25]} 9. Nge2 {[%emt 0:01:04]} Be6 {[%emt 0:11:26]} 10. Qb3 {[%emt 0:10:15]} Rb8 {[%emt 0:07:16]} 11. Qa4 {[%emt 0:05:43]} Qd7 {[%emt 0:03:33]} 12. Nd5 {[%emt 0:05:04]} Bh3 {[%emt 0:07:47]} 13. Nxf6+ {[%emt 0:21:18]} Bxf6 {[%emt 0:01:06]} 14. Be4 {[%emt 0:14:16]} Bg7 {[%emt 0:14:50]} 15. Bd2 {[%emt 0:00:00]} Bf5 {[%emt 0:08:12]} 16. O-O {[%emt 0:12:15]} Nd4 {[%emt 0:09:01]} 17. Qd1 {[%emt 0:00:26]} Bxe4 {[%emt 0:00:10]} 18. dxe4 {[%emt 0:00:07]} Nf3+ {[%emt 0:00:37]} 19. Kg2 {[%emt 0:00:13]} Ng5 {[%emt 0:05:47]} 20. f3 {[%emt 0:04:08]} Qh3+ {[%emt 0:07:38]} 21. Kh1 {[%emt 0:04:06]} b6 {[%emt 0:01:55]} 22. Nc3 {[%emt 0:03:11]} f5 {[%emt 0:01:33]} 23. exf5 {[%emt 0:00:32]} gxf5 {[%emt 0:00:13]} 24. e4 {[%emt 0:03:22]} Ne6 {[%emt 0:02:11]} 25. Nd5 {[%emt 0:00:34]} fxe4 {[%emt 0:01:36]} 26. fxe4 {[%emt 0:00:05]} Rxf1+ {[%emt 0:00:34]} 27. Qxf1 {[%emt 0:00:02]} Qg4 {[%emt 0:02:14]} 28. Re1 {[%emt 0:02:13]} Rf8 {[%emt 0:00:27]} 29. Qg2 {[%emt 0:00:58]} Kh8 {[%emt 0:00:39]} 30. h3 {[%emt 0:00:38]} Qg6 {[%emt 0:00:36]} 31. Ne7 {[%emt 0:00:53]} Qf7 {[%emt 0:00:44]} 32. Nd5 {[%emt 0:00:20]} Nd4 {[%emt 0:00:34]} 33. Bc3 {[%emt 0:00:24]} Bh6 {[%emt 0:00:42]} 34. b4 {[%emt 0:00:41]} axb4 {[%emt 0:00:22]} 35. axb4 {[%emt 0:00:01]} Ne6 {[%emt 0:00:43]} 36. Ra1 {[%emt 0:00:59]} Kg7 {[%emt 0:00:38]} 37. Ra7 {[%emt 0:00:32]} Qh5 {[%emt 0:00:24]} 38. Nxc7 {[%emt 0:00:36]} Qd1+ {[%emt 0:00:30]} 39. Kh2 {[%emt 0:00:06]} Nxc7 {[%emt 0:00:18]} 40. Rxc7+ {[%emt 0:00:00]} Kg8 {[%emt 0:00:00]} 41. Ra7 {[%emt 0:04:34]} Be3 {[%emt 0:11:00]} 42. Ra2 {[%emt 0:00:35]} Qb3 {[%emt 0:06:50]} 43. Rc2 {[%emt 0:00:02]} 1/2-1/2

[Event "XVI Calvia Amateur Open 2019"]
[Site "Calvia"]
[Date "2019.10.12"]
[Round "8.2"]
[White "Massanet Massanet, Sebastian"]
[Black "Thakoerdien, Jerrel"]
[Result "1-0"]
[ECO "A67"]
[WhiteElo "2252"]
[BlackElo "2149"]
[Annotator "NA"]
[PlyCount "93"]
[EventDate "2019.10.05"]
[EventType "swiss"]
[EventCountry "ESP"]
[SourceTitle "playchess.com"]
[Source "ChessBase"]
[SourceQuality "1"]
[TimeControl "40/5400+30:900+30"]

1. d4 {[%emt 0:02:55]} Nf6 {[%emt 0:00:00]} 2. c4 {[%emt 0:00:09]} c5 {[%emt 0:00:55]} 3. d5 {[%emt 0:00:45]} e6 {[%emt 0:00:17]} 4. Nc3 {[%emt 0:00:24]} exd5 {[%emt 0:00:41]} 5. cxd5 {[%emt 0:00:14]} d6 {[%emt 0:00:15]} 6. e4 {[%emt 0:00:42]} g6 {[%emt 0:00:25]} 7. f4 {[%emt 0:00:27]} Bg7 {[%emt 0:01:26]} 8. Bb5+ {[%emt 0:00:38]} Nfd7 {[%emt 0:00:46]} 9. Be2 {[%emt 0:00:19]} O-O {[%emt 0:00:59]} 10. Nf3 {[%emt 0:01:16]} Na6 {[%emt 0:00:33]} 11. O-O {[%emt 0:00:51]} Nc7 {[%emt 0:00:58]} 12. Kh1 {[%emt 0:13:30]} a6 {[%emt 0:00:34]} 13. a4 {[%emt 0:00:07]} Rb8 {[%emt 0:00:32]} 14. a5 {[%emt 0:04:40]} Re8 {[%emt 0:03:44]} 15. f5 {[%emt 0:03:52]} b5 {[%emt 0:02:51]} 16. axb6 {[%emt 0:02:06]} Rxb6 {[%emt 0:00:11]} 17. Bg5 {[%emt 0:02:47]} f6 {[%emt 0:17:19]} 18. Bc1 {[%emt 0:03:34]} Qe7 {[%emt 0:04:46]} 19. Bd3 {[%emt 0:09:32]} Ne5 {[%emt 0:24:43]} 20. Nxe5 {[%emt 0:03:10]} dxe5 {[%emt 0:03:33]} 21. Bc4 {[%emt 0:01:58]} Qd6 {[%emt 0:03:55]} 22. Be3 {[%emt 0:08:21]} Bd7 {[%emt 0:01:05]} 23. Qe2 {[%emt 0:02:52]} Nb5 {[%emt 0:02:10]} 24. Na4 {[%emt 0:06:32]} Nd4 {[%emt 0:00:29]} 25. Bxd4 {[%emt 0:00:26]} Bxa4 {[%emt 0:02:09]} 26. Bxc5 {[%emt 0:01:38]} Qxc5 {[%emt 0:00:14]} 27. Rxa4 {[%emt 0:00:08]} gxf5 {[%emt 0:02:16]} 28. Rxf5 {[%emt 0:02:35]} a5 {[%emt 0:04:17]} 29. Rf3 {[%emt 0:05:49]} Kh8 {[%emt 0:03:25]} 30. Rh3 {[%emt 0:03:07]} Rc8 {[%emt 0:06:49]} 31. b3 {[%emt 0:01:53]} Rb4 {[%emt 0:02:02]} 32. Ra1 {[%emt 0:04:32]} a4 {[%emt 0:00:15]} 33. Rd1 {[%emt 0:00:40]} Rd8 {[%emt 0:05:42]} 34. Qh5 {[%emt 0:02:29]} h6 {[%emt 0:00:18]} 35. Rg3 {[%emt 0:04:47]} axb3 {[%emt 0:00:53]} 36. Bxb3 {[%emt 0:00:42]} Rdb8 {[%emt 0:04:20]} 37. d6 {[%emt 0:03:27]} Rd4 {[%emt 0:00:09]} 38. d7 {[%emt 0:02:55]} Qe7 {[%emt 0:00:30]} 39. Rxd4 {[%emt 0:01:02]} exd4 {[%emt 0:00:09]} 40. Qd5 {[%emt 0:00:00]} Rd8 {[%emt 0:00:00]} 41. Qf5 {[%emt 0:08:00]} Qxd7 {[%emt 0:05:39]} 42. Qg6 {[%emt 0:03:27]} Rc8 {[%emt 0:05:18]} 43. h3 {[%emt 0:02:32]} d3 {[%emt 0:01:35]} 44. Bf7 {[%emt 0:00:51]} Rg8 {[%emt 0:05:29]} 45. Bxg8 {[%emt 0:00:38]} Kxg8 {[%emt 0:00:01]} 46. Qf5 {[%emt 0:01:54]} Qb7 {[%emt 0:02:51]} 47. Qd5+ {[%emt 0:00:58]} 1-0

[Event "XVI Calvia Amateur Open 2019"]
[Site "Calvia"]
[Date "2019.10.12"]
[Round "8.3"]
[White "Borovnica, Tihomir"]
[Black "Voiteanu, Gabriel"]
[Result "1/2-1/2"]
[ECO "D15"]
[WhiteElo "2231"]
[BlackElo "2119"]
[Annotator "NA"]
[PlyCount "91"]
[EventDate "2019.10.05"]
[EventType "swiss"]
[EventCountry "ESP"]
[SourceTitle "playchess.com"]
[Source "ChessBase"]
[SourceQuality "1"]
[TimeControl "40/5400+30:900+30"]

1. d4 {[%emt 0:06:04]} d5 {[%emt 0:00:00]} 2. c4 {[%emt 0:00:05]} c6 {[%emt 0:00:00]} 3. Nf3 {[%emt 0:00:10]} Nf6 {[%emt 0:00:00]} 4. Nc3 {[%emt 0:00:30]} dxc4 {[%emt 0:00:14]} 5. g3 {[%emt 0:03:20]} c5 {[%emt 0:03:21]} 6. Qa4+ {[%emt 0:01:22]} Bd7 {[%emt 0:07:37]} 7. Qxc4 {[%emt 0:00:07]} cxd4 {[%emt 0:00:59]} 8. Nxd4 {[%emt 0:00:12]} Nc6 {[%emt 0:02:29]} 9. Bg2 {[%emt 0:01:06]} Nxd4 {[%emt 0:17:40]} 10. Qxd4 {[%emt 0:00:05]} Bc6 {[%emt 0:03:42]} 11. Bxc6+ {[%emt 0:00:07]} bxc6 {[%emt 0:00:01]} 12. Qxd8+ {[%emt 0:00:18]} Rxd8 {[%emt 0:00:58]} 13. Be3 {[%emt 0:00:08]} Rd7 {[%emt 0:04:48]} 14. O-O {[%emt 0:00:46]} e5 {[%emt 0:04:16]} 15. Rfd1 {[%emt 0:11:36]} Nd5 {[%emt 0:03:01]} 16. Nxd5 {[%emt 0:00:11]} cxd5 {[%emt 0:00:10]} 17. Rac1 {[%emt 0:00:49]} d4 {[%emt 0:08:41]} 18. Bd2 {[%emt 0:00:06]} Bd6 {[%emt 0:02:59]} 19. Rc8+ {[%emt 0:04:08]} Rd8 {[%emt 0:00:01]} 20. Rxd8+ {[%emt 0:00:08]} Kxd8 {[%emt 0:00:01]} 21. e3 {[%emt 0:00:08]} Kc8 {[%emt 0:04:04]} 22. exd4 {[%emt 0:00:15]} exd4 {[%emt 0:00:13]} 23. Rc1+ {[%emt 0:00:11]} Kb7 {[%emt 0:00:40]} 24. Rc4 {[%emt 0:00:31]} Be5 {[%emt 0:00:40]} 25. Kg2 {[%emt 0:06:52]} f5 {[%emt 0:04:10]} 26. Kf3 {[%emt 0:01:13]} Re8 {[%emt 0:01:02]} 27. h3 {[%emt 0:02:23]} Bf6 {[%emt 0:03:37]} 28. g4 {[%emt 0:06:05]} fxg4+ {[%emt 0:06:38]} 29. hxg4 {[%emt 0:00:04]} h6 {[%emt 0:00:26]} 30. a4 {[%emt 0:00:40]} d3 {[%emt 0:05:11]} 31. Rb4+ {[%emt 0:00:59]} Kc6 {[%emt 0:02:17]} 32. Re4 {[%emt 0:05:31]} Rf8 {[%emt 0:10:21]} 33. Ke3 {[%emt 0:01:09]} Bxb2 {[%emt 0:01:01]} 34. Kxd3 {[%emt 0:00:04]} Rxf2 {[%emt 0:02:16]} 35. Re7 {[%emt 0:00:21]} Rg2 {[%emt 0:02:33]} 36. g5 {[%emt 0:00:32]} hxg5 {[%emt 0:00:20]} 37. Rxa7 {[%emt 0:00:05]} g4 {[%emt 0:00:25]} 38. Ra6+ {[%emt 0:00:10]} Kb7 {[%emt 0:00:29]} 39. Rg6 {[%emt 0:00:08]} Bf6 {[%emt 0:00:27]} 40. a5 {[%emt 0:00:00]} Rg1 {[%emt 0:00:00]} 41. Be3 {[%emt 0:02:52]} Rg2 {[%emt 0:05:44]} 42. Ke4 {[%emt 0:00:40]} Ra2 {[%emt 0:00:54]} 43. Bb6 {[%emt 0:01:02]} Kc6 {[%emt 0:02:45]} 44. Rxg4 {[%emt 0:00:07]} Ra4+ {[%emt 0:00:09]} 45. Kf5 {[%emt 0:00:09]} Rxg4 {[%emt 0:00:06]} 46. Kxg4 {[%emt 0:00:06]} 1/2-1/2